[Event "Late-Titled-Tuesday-Blitz-February-13-2024"]
[Site "Chess.com"]
[Date "2024.02.13"]
[Round "1"]
[White "Sokoloco"]
[Black "vladoboch"]
[Result "1-0"]
[WhiteElo "2792"]
[BlackElo "2421"]
[TimeControl "180+1"]
[EndTime "14:02:43 PST"]
[Termination "Sokoloco won by checkmate"]

1. b3 {[%clk 0:03:00.9]} 1... e5 {[%clk 0:02:59.1]} 2. Bb2 {[%clk 0:03:01.2]}
2... Nc6 {[%clk 0:02:59.1]} 3. e3 {[%clk 0:03:02]} 3... Nf6 {[%clk 0:02:59.3]}
4. Nf3 {[%clk 0:03:02.7]} 4... e4 {[%clk 0:02:59.4]} 5. Nd4 {[%clk 0:03:03.4]}
5... Nxd4 {[%clk 0:02:59.9]} 6. Bxd4 {[%clk 0:03:04.3]} 6... d5 {[%clk
0:03:00.4]} 7. c4 {[%clk 0:03:04.9]} 7... c5 {[%clk 0:03:00.9]} 8. Bxf6 {[%clk
0:03:00.1]} 8... Qxf6 {[%clk 0:03:01]} 9. Nc3 {[%clk 0:03:01]} 9... Bd6 {[%clk
0:02:44.9]} 10. cxd5 {[%clk 0:02:52.7]} 10... O-O {[%clk 0:02:43.2]} 11. Nxe4
{[%clk 0:02:50.7]} 11... Qe5 {[%clk 0:02:43.5]} 12. Nxd6 {[%clk 0:02:48.5]}
12... Qxd6 {[%clk 0:02:44.4]} 13. Bc4 {[%clk 0:02:46.3]} 13... a6 {[%clk
0:02:44.7]} 14. a4 {[%clk 0:02:46.2]} 14... Bd7 {[%clk 0:02:45.3]} 15. a5 {[%clk
0:02:46.5]} 15... f5 {[%clk 0:02:40.7]} 16. f4 {[%clk 0:02:37.8]} 16... Kh8
{[%clk 0:02:39.3]} 17. O-O {[%clk 0:02:38]} 17... Rae8 {[%clk 0:02:36.1]} 18.
Qf3 {[%clk 0:02:33.5]} 18... Rf6 {[%clk 0:02:34.9]} 19. Rfe1 {[%clk 0:02:32.5]}
19... Ref8 {[%clk 0:02:18.1]} 20. d3 {[%clk 0:02:30.8]} 20... Be8 {[%clk
0:02:12.2]} 21. g3 {[%clk 0:02:30.6]} 21... Rh6 {[%clk 0:02:10.6]} 22. e4 {[%clk
0:02:29.8]} 22... Bh5 {[%clk 0:02:10.4]} 23. Qf2 {[%clk 0:02:29.6]} 23... fxe4
{[%clk 0:02:10.5]} 24. dxe4 {[%clk 0:02:30.5]} 24... Qg6 {[%clk 0:02:07.4]} 25.
Qxc5 {[%clk 0:02:25.3]} 25... Bf3 {[%clk 0:02:05.5]} 26. Qxf8# {[%clk
0:02:25.1]} 1-0

[Event "Late-Titled-Tuesday-Blitz-February-13-2024"]
[Site "Chess.com"]
[Date "2024.02.13"]
[Round "1"]
[White "lluiss"]
[Black "annasargsyan_m"]
[Result "0-1"]
[WhiteElo "2144"]
[BlackElo "2553"]
[TimeControl "180+1"]
[EndTime "14:03:16 PST"]
[Termination "annasargsyan_m won by resignation"]

1. e4 {[%clk 0:03:00.9]} 1... c6 {[%clk 0:02:59.6]} 2. d4 {[%clk 0:02:57.7]}
2... d5 {[%clk 0:02:58.1]} 3. exd5 {[%clk 0:02:57.6]} 3... cxd5 {[%clk
0:02:58.7]} 4. Bd3 {[%clk 0:02:57.5]} 4... Nf6 {[%clk 0:02:58.9]} 5. c3 {[%clk
0:02:54.8]} 5... Nc6 {[%clk 0:02:59.5]} 6. h3 {[%clk 0:02:52.5]} 6... g6 {[%clk
0:02:59.3]} 7. Bf4 {[%clk 0:02:51.8]} 7... Bg7 {[%clk 0:02:59.9]} 8. Nf3 {[%clk
0:02:51.8]} 8... O-O {[%clk 0:03:00.6]} 9. O-O {[%clk 0:02:51.9]} 9... Bf5
{[%clk 0:02:52]} 10. Ne5 {[%clk 0:02:51.3]} 10... Rc8 {[%clk 0:02:47.7]} 11.
Nxc6 {[%clk 0:02:50.6]} 11... Rxc6 {[%clk 0:02:48.6]} 12. Be5 {[%clk 0:02:50.8]}
12... Bxd3 {[%clk 0:02:43]} 13. Qxd3 {[%clk 0:02:50.1]} 13... Ne4 {[%clk
0:02:43.9]} 14. Bxg7 {[%clk 0:02:49.1]} 14... Kxg7 {[%clk 0:02:44.8]} 15. Nd2
{[%clk 0:02:45.4]} 15... f5 {[%clk 0:02:44.8]} 16. Nf3 {[%clk 0:02:42.3]} 16...
g5 {[%clk 0:02:43.4]} 17. Ne5 {[%clk 0:02:41.4]} 17... Rcf6 {[%clk 0:02:42.6]}
18. f4 {[%clk 0:02:26.1]} 18... gxf4 {[%clk 0:02:39.4]} 19. Rxf4 {[%clk
0:02:24.5]} 19... e6 {[%clk 0:02:40]} 20. Raf1 {[%clk 0:02:21.4]} 20... Rh6
{[%clk 0:02:34.9]} 21. Nf3 {[%clk 0:02:12.4]} 21... Rg6 {[%clk 0:02:28.7]} 22.
Ne5 {[%clk 0:02:09]} 22... Rg3 {[%clk 0:02:28.5]} 23. R1f3 {[%clk 0:02:08.2]}
23... Qg5 {[%clk 0:02:24.7]} 24. Rxg3 {[%clk 0:02:05]} 24... Nxg3 {[%clk
0:02:25.2]} 25. Qd2 {[%clk 0:01:33.7]} 25... Qxf4 {[%clk 0:02:21.8]} 0-1

[Event "Late-Titled-Tuesday-Blitz-February-13-2024"]
[Site "Chess.com"]
[Date "2024.02.13"]
[Round "1"]
[White "Grindaveci"]
[Black "aceontheturn"]
[Result "1-0"]
[WhiteElo "2443"]
[BlackElo "2801"]
[TimeControl "180+1"]
[EndTime "14:03:38 PST"]
[Termination "Grindaveci won by checkmate"]

1. e4 {[%clk 0:02:59.7]} 1... e6 {[%clk 0:02:59.3]} 2. d4 {[%clk 0:02:59.7]}
2... d5 {[%clk 0:03:00.2]} 3. Nc3 {[%clk 0:02:59.2]} 3... dxe4 {[%clk 0:03:00]}
4. Nxe4 {[%clk 0:02:59.2]} 4... Nd7 {[%clk 0:03:00.7]} 5. Nf3 {[%clk 0:02:58.9]}
5... Ngf6 {[%clk 0:03:01.6]} 6. Nxf6+ {[%clk 0:02:59.5]} 6... Nxf6 {[%clk
0:03:01.6]} 7. Bd3 {[%clk 0:03:00.1]} 7... Be7 {[%clk 0:02:58.3]} 8. O-O {[%clk
0:02:59.8]} 8... O-O {[%clk 0:02:57.9]} 9. Re1 {[%clk 0:02:59.7]} 9... b6 {[%clk
0:02:58.2]} 10. Ne5 {[%clk 0:02:57.9]} 10... Bb7 {[%clk 0:02:58.4]} 11. c3
{[%clk 0:02:57.9]} 11... c5 {[%clk 0:02:49.7]} 12. Be3 {[%clk 0:02:54.4]} 12...
Nd5 {[%clk 0:02:34.3]} 13. Qh5 {[%clk 0:02:40.6]} 13... g6 {[%clk 0:02:18.6]}
14. Nxg6 {[%clk 0:02:20.4]} 14... fxg6 {[%clk 0:02:13.2]} 15. Bxg6 {[%clk
0:02:19.9]} 15... Nf6 {[%clk 0:02:13.4]} 16. Qh6 {[%clk 0:02:19.6]} 16... Qd5
{[%clk 0:02:02.7]} 17. f3 {[%clk 0:02:06.6]} 17... hxg6 {[%clk 0:02:02.5]} 18.
Qxg6+ {[%clk 0:02:05.9]} 18... Kh8 {[%clk 0:02:02.7]} 19. Bg5 {[%clk 0:02:05.3]}
19... Rg8 {[%clk 0:01:24.2]} 20. Bxf6+ {[%clk 0:02:02.1]} 20... Bxf6 {[%clk
0:01:24.3]} 21. Qh6# {[%clk 0:02:02.1]} 1-0

[Event "Late-Titled-Tuesday-Blitz-February-13-2024"]
[Site "Chess.com"]
[Date "2024.02.13"]
[Round "1"]
[White "mitrabhaa"]
[Black "Attacker_2006"]
[Result "1-0"]
[WhiteElo "2902"]
[BlackElo "2480"]
[TimeControl "180+1"]
[EndTime "14:03:42 PST"]
[Termination "mitrabhaa won by resignation"]

1. d4 {[%clk 0:02:49.4]} 1... d5 {[%clk 0:02:58.6]} 2. Bf4 {[%clk 0:02:49.3]}
2... Nf6 {[%clk 0:02:57.7]} 3. e3 {[%clk 0:02:48.8]} 3... e6 {[%clk 0:02:57.7]}
4. Nf3 {[%clk 0:02:47.3]} 4... Bd6 {[%clk 0:02:57.6]} 5. Nbd2 {[%clk 0:02:45.8]}
5... c5 {[%clk 0:02:56.9]} 6. c3 {[%clk 0:02:45.9]} 6... Nc6 {[%clk 0:02:56.9]}
7. Bd3 {[%clk 0:02:45.8]} 7... Qc7 {[%clk 0:02:55.8]} 8. Bxd6 {[%clk 0:02:43.8]}
8... Qxd6 {[%clk 0:02:56.7]} 9. O-O {[%clk 0:02:44.1]} 9... b6 {[%clk
0:02:55.8]} 10. e4 {[%clk 0:02:43.3]} 10... dxe4 {[%clk 0:02:54.5]} 11. Nxe4
{[%clk 0:02:44.2]} 11... Nxe4 {[%clk 0:02:54.5]} 12. Bxe4 {[%clk 0:02:45.1]}
12... Bb7 {[%clk 0:02:53.7]} 13. dxc5 {[%clk 0:02:44]} 13... Qxc5 {[%clk
0:02:52.7]} 14. Qe2 {[%clk 0:02:36.8]} 14... O-O {[%clk 0:02:43.2]} 15. Rad1
{[%clk 0:02:34]} 15... Rad8 {[%clk 0:02:42]} 16. Rxd8 {[%clk 0:02:26]} 16...
Rxd8 {[%clk 0:02:41.6]} 17. Rd1 {[%clk 0:02:26.9]} 17... Rxd1+ {[%clk
0:02:29.8]} 18. Qxd1 {[%clk 0:02:27.8]} 18... g6 {[%clk 0:02:29.6]} 19. Qd7
{[%clk 0:02:23.3]} 1-0

[Event "Late-Titled-Tuesday-Blitz-February-13-2024"]
[Site "Chess.com"]
[Date "2024.02.13"]
[Round "1"]
[White "cristianserban1"]
[Black "Konavets"]
[Result "0-1"]
[WhiteElo "2512"]
[BlackElo "3033"]
[TimeControl "180+1"]
[EndTime "14:03:49 PST"]
[Termination "Konavets won by resignation"]

1. d4 {[%clk 0:03:00.9]} 1... Nf6 {[%clk 0:02:51.4]} 2. c4 {[%clk 0:03:00.5]}
2... e5 {[%clk 0:02:50.8]} 3. dxe5 {[%clk 0:03:00.6]} 3... Ng4 {[%clk
0:02:50.6]} 4. Bf4 {[%clk 0:03:01.1]} 4... g5 {[%clk 0:02:50.7]} 5. Bg3 {[%clk
0:02:53.7]} 5... Bg7 {[%clk 0:02:51.2]} 6. Nf3 {[%clk 0:02:53.1]} 6... Nc6
{[%clk 0:02:51.7]} 7. Nc3 {[%clk 0:02:25.1]} 7... Ngxe5 {[%clk 0:02:49.8]} 8.
Nxe5 {[%clk 0:02:24.6]} 8... Nxe5 {[%clk 0:02:50.7]} 9. e3 {[%clk 0:02:24.1]}
9... d6 {[%clk 0:02:51.3]} 10. Be2 {[%clk 0:02:24.3]} 10... Be6 {[%clk
0:02:50.6]} 11. Qa4+ {[%clk 0:01:55.3]} 11... c6 {[%clk 0:02:49.7]} 12. O-O-O
{[%clk 0:01:39.6]} 12... Qe7 {[%clk 0:02:47.3]} 13. Ne4 {[%clk 0:01:33.4]} 13...
O-O {[%clk 0:02:46.2]} 14. Nxd6 {[%clk 0:01:29.6]} 14... Rad8 {[%clk 0:02:44.8]}
15. Ne4 {[%clk 0:01:14.2]} 15... f5 {[%clk 0:02:41.2]} 16. Nc3 {[%clk
0:01:14.5]} 16... f4 {[%clk 0:02:39.3]} 17. Rxd8 {[%clk 0:01:09.4]} 17... Qxd8
{[%clk 0:02:40.2]} 18. Rd1 {[%clk 0:00:27.5]} 18... Qe7 {[%clk 0:02:39.3]} 0-1

[Event "Late-Titled-Tuesday-Blitz-February-13-2024"]
[Site "Chess.com"]
[Date "2024.02.13"]
[Round "1"]
[White "PNEPaul"]
[Black "Perecke"]
[Result "0-1"]
[WhiteElo "1902"]
[BlackElo "2531"]
[TimeControl "180+1"]
[EndTime "14:03:57 PST"]
[Termination "Perecke won by resignation"]

1. e4 {[%clk 0:03:00.9]} 1... c5 {[%clk 0:03:00]} 2. Nf3 {[%clk 0:03:00.4]} 2...
e6 {[%clk 0:02:59.6]} 3. d4 {[%clk 0:03:00.1]} 3... cxd4 {[%clk 0:03:00.5]} 4.
c3 {[%clk 0:03:00]} 4... Nc6 {[%clk 0:03:01.4]} 5. cxd4 {[%clk 0:02:59.2]} 5...
d5 {[%clk 0:02:57.4]} 6. e5 {[%clk 0:02:58.8]} 6... f6 {[%clk 0:02:54]} 7. Nc3
{[%clk 0:02:53.8]} 7... fxe5 {[%clk 0:02:53.8]} 8. dxe5 {[%clk 0:02:53.5]} 8...
g6 {[%clk 0:02:53.6]} 9. Bd3 {[%clk 0:02:49.8]} 9... Bg7 {[%clk 0:02:53.4]} 10.
Qe2 {[%clk 0:02:48.9]} 10... Nge7 {[%clk 0:02:52]} 11. O-O {[%clk 0:02:36.8]}
11... O-O {[%clk 0:02:51.7]} 12. Re1 {[%clk 0:02:25.4]} 12... b6 {[%clk
0:02:46.6]} 13. Bg5 {[%clk 0:02:19.2]} 13... a5 {[%clk 0:02:46.3]} 14. Rad1
{[%clk 0:02:08]} 14... Nb4 {[%clk 0:02:45.9]} 15. Bb1 {[%clk 0:02:07]} 15... Ba6
{[%clk 0:02:46.1]} 16. Qd2 {[%clk 0:02:05]} 16... Qc7 {[%clk 0:02:42.1]} 17. a3
{[%clk 0:01:56.2]} 17... Nbc6 {[%clk 0:02:42.4]} 18. Rc1 {[%clk 0:01:46]} 18...
Rxf3 {[%clk 0:02:32.4]} 19. gxf3 {[%clk 0:01:43.4]} 19... Nxe5 {[%clk
0:02:32.8]} 20. Rxe5 {[%clk 0:01:13.6]} 20... Qxe5 {[%clk 0:02:28.3]} 21. Bxe7
{[%clk 0:01:10.7]} 21... Qh5 {[%clk 0:02:21]} 22. Qf4 {[%clk 0:00:55.4]} 22...
Bh6 {[%clk 0:02:13.9]} 0-1

[Event "Late-Titled-Tuesday-Blitz-February-13-2024"]
[Site "Chess.com"]
[Date "2024.02.13"]
[Round "1"]
[White "Willhaven3"]
[Black "MasterofMasters2006"]
[Result "1-0"]
[WhiteElo "2625"]
[BlackElo "2270"]
[TimeControl "180+1"]
[EndTime "14:03:58 PST"]
[Termination "Willhaven3 won by resignation"]

1. d4 {[%clk 0:03:00.9]} 1... Nf6 {[%clk 0:02:58.9]} 2. Nf3 {[%clk 0:03:00.7]}
2... d5 {[%clk 0:02:52.1]} 3. c4 {[%clk 0:03:00.9]} 3... e6 {[%clk 0:02:47]} 4.
Nc3 {[%clk 0:03:01]} 4... Be7 {[%clk 0:02:43.7]} 5. cxd5 {[%clk 0:03:01]} 5...
exd5 {[%clk 0:02:44.6]} 6. Bf4 {[%clk 0:03:01.4]} 6... O-O {[%clk 0:02:41.8]} 7.
e3 {[%clk 0:03:01.6]} 7... c6 {[%clk 0:02:41.8]} 8. Qc2 {[%clk 0:03:01.1]} 8...
Bg4 {[%clk 0:02:40.5]} 9. Ne5 {[%clk 0:03:00.2]} 9... Bh5 {[%clk 0:02:37.1]} 10.
Bd3 {[%clk 0:03:00.3]} 10... Nbd7 {[%clk 0:02:36]} 11. O-O {[%clk 0:02:59]}
11... Rc8 {[%clk 0:02:33.4]} 12. a3 {[%clk 0:02:55.2]} 12... c5 {[%clk
0:02:19.3]} 13. Nxd7 {[%clk 0:02:47]} 13... Qxd7 {[%clk 0:02:00.4]} 14. Bf5
{[%clk 0:02:46.6]} 14... Qd8 {[%clk 0:01:59.6]} 15. Bxc8 {[%clk 0:02:45.8]}
15... Qxc8 {[%clk 0:02:00.1]} 16. dxc5 {[%clk 0:02:39.3]} 16... Qxc5 {[%clk
0:01:58.2]} 17. Be5 {[%clk 0:02:34.4]} 17... Nd7 {[%clk 0:01:57.3]} 18. Bd4
{[%clk 0:02:34.4]} 18... Qc6 {[%clk 0:01:57.9]} 19. Qf5 {[%clk 0:02:33.1]} 19...
Bg6 {[%clk 0:01:53]} 20. Qxd5 {[%clk 0:02:32.6]} 20... Qc8 {[%clk 0:01:45.6]}
21. Rac1 {[%clk 0:02:25.5]} 21... Nf6 {[%clk 0:01:44.4]} 22. Qf3 {[%clk
0:02:15.7]} 22... Qe6 {[%clk 0:01:43.2]} 23. Qxb7 {[%clk 0:02:09.1]} 23... h5
{[%clk 0:01:39.6]} 24. Qxa7 {[%clk 0:02:03]} 24... h4 {[%clk 0:01:39.6]} 25. Qb6
{[%clk 0:01:57.2]} 25... Qf5 {[%clk 0:01:37.3]} 26. Qb5 {[%clk 0:01:52.4]} 26...
Qg4 {[%clk 0:01:37.3]} 27. h3 {[%clk 0:01:52.5]} 27... Qe6 {[%clk 0:01:35.5]}
28. Qe5 {[%clk 0:01:51.6]} 28... Qa6 {[%clk 0:01:34]} 29. Qxe7 {[%clk
0:01:50.4]} 1-0

[Event "Late-Titled-Tuesday-Blitz-February-13-2024"]
[Site "Chess.com"]
[Date "2024.02.13"]
[Round "1"]
[White "kuli4ik"]
[Black "LastHeroJr"]
[Result "1-0"]
[WhiteElo "2873"]
[BlackElo "2475"]
[TimeControl "180+1"]
[EndTime "14:04:01 PST"]
[Termination "kuli4ik won by resignation"]

1. Nf3 {[%clk 0:02:59.9]} 1... Nf6 {[%clk 0:02:54.5]} 2. g3 {[%clk 0:02:58.5]}
2... d5 {[%clk 0:02:53.4]} 3. Bg2 {[%clk 0:02:57.9]} 3... c6 {[%clk 0:02:50.7]}
4. O-O {[%clk 0:02:56.6]} 4... Bf5 {[%clk 0:02:48.4]} 5. d3 {[%clk 0:02:54.5]}
5... Nbd7 {[%clk 0:02:48.8]} 6. Nh4 {[%clk 0:02:51.8]} 6... Bg6 {[%clk 0:02:49]}
7. Qe1 {[%clk 0:02:51.3]} 7... e6 {[%clk 0:02:49.2]} 8. e4 {[%clk 0:02:50.4]}
8... Bc5 {[%clk 0:02:49.7]} 9. Nc3 {[%clk 0:02:49.9]} 9... O-O {[%clk
0:02:47.9]} 10. h3 {[%clk 0:02:49.7]} 10... Qc7 {[%clk 0:02:46.8]} 11. Kh2
{[%clk 0:02:48.1]} 11... Rfe8 {[%clk 0:02:41.4]} 12. f4 {[%clk 0:02:46.8]} 12...
Bb6 {[%clk 0:02:39.3]} 13. g4 {[%clk 0:02:35.1]} 13... dxe4 {[%clk 0:02:38.1]}
14. dxe4 {[%clk 0:02:34.9]} 14... Nf8 {[%clk 0:02:37.8]} 15. Qg3 {[%clk
0:02:27.5]} 15... h6 {[%clk 0:02:36.4]} 16. Nxg6 {[%clk 0:02:16.8]} 16... Nxg6
{[%clk 0:02:35.1]} 17. e5 {[%clk 0:02:17.3]} 17... Nd5 {[%clk 0:02:34.5]} 18.
Ne4 {[%clk 0:02:17.5]} 18... Rad8 {[%clk 0:02:32.4]} 19. a3 {[%clk 0:02:04.5]}
19... a5 {[%clk 0:02:30.5]} 20. c4 {[%clk 0:01:56.7]} 20... Nde7 {[%clk
0:02:27]} 21. c5 {[%clk 0:01:57]} 21... Ba7 {[%clk 0:02:27]} 22. b4 {[%clk
0:01:57.4]} 22... Nd5 {[%clk 0:02:25.3]} 23. Rb1 {[%clk 0:01:56.2]} 23... axb4
{[%clk 0:02:24.7]} 24. axb4 {[%clk 0:01:56.2]} 24... b6 {[%clk 0:02:24.2]} 25.
Nd6 {[%clk 0:01:50]} 25... Re7 {[%clk 0:02:18.7]} 26. Be3 {[%clk 0:01:44.9]}
26... Nxe3 {[%clk 0:02:14]} 27. Qxe3 {[%clk 0:01:44.2]} 27... bxc5 {[%clk
0:02:14.3]} 28. bxc5 {[%clk 0:01:44.6]} 28... Nf8 {[%clk 0:02:13]} 29. Rfc1
{[%clk 0:01:36]} 29... Nd7 {[%clk 0:02:12.4]} 30. Rb7 {[%clk 0:01:30.7]} 30...
Nxc5 {[%clk 0:02:11.3]} 31. Rxc7 {[%clk 0:01:28.4]} 31... Rxc7 {[%clk
0:02:09.9]} 32. Rxc5 {[%clk 0:01:27.5]} 32... Rb8 {[%clk 0:02:10.4]} 33. Qc3
{[%clk 0:01:24]} 1-0

[Event "Late-Titled-Tuesday-Blitz-February-13-2024"]
[Site "Chess.com"]
[Date "2024.02.13"]
[Round "1"]
[White "hurricane7791"]
[Black "UK_23"]
[Result "1-0"]
[WhiteElo "2709"]
[BlackElo "2370"]
[TimeControl "180+1"]
[EndTime "14:04:18 PST"]
[Termination "hurricane7791 won by resignation"]

1. d4 {[%clk 0:02:58.5]} 1... d5 {[%clk 0:02:58.1]} 2. c4 {[%clk 0:02:58.7]}
2... e6 {[%clk 0:02:58.6]} 3. Nf3 {[%clk 0:02:59.2]} 3... Nf6 {[%clk 0:02:58.7]}
4. Nc3 {[%clk 0:02:59.9]} 4... Be7 {[%clk 0:02:58.4]} 5. Bf4 {[%clk 0:02:59.6]}
5... O-O {[%clk 0:02:58.2]} 6. e3 {[%clk 0:03:00.2]} 6... b6 {[%clk 0:02:57.8]}
7. Qc2 {[%clk 0:03:00.7]} 7... c5 {[%clk 0:02:55.6]} 8. cxd5 {[%clk 0:03:00.5]}
8... Nxd5 {[%clk 0:02:55.5]} 9. Nxd5 {[%clk 0:03:00.4]} 9... exd5 {[%clk
0:02:56.4]} 10. Bd3 {[%clk 0:03:01]} 10... h6 {[%clk 0:02:43.5]} 11. O-O {[%clk
0:02:57.9]} 11... c4 {[%clk 0:02:39.5]} 12. Be2 {[%clk 0:02:48]} 12... Nc6
{[%clk 0:02:39.8]} 13. a4 {[%clk 0:02:46.5]} 13... Be6 {[%clk 0:02:37.2]} 14.
Rfc1 {[%clk 0:02:45.1]} 14... a6 {[%clk 0:02:36.3]} 15. b3 {[%clk 0:02:42.7]}
15... Nb4 {[%clk 0:02:34.7]} 16. Qb2 {[%clk 0:02:41.3]} 16... Nd3 {[%clk
0:02:32.2]} 17. Bxd3 {[%clk 0:02:39.8]} 17... cxd3 {[%clk 0:02:33.1]} 18. Qd2
{[%clk 0:02:37.8]} 18... Bf5 {[%clk 0:02:30.8]} 19. Ne5 {[%clk 0:02:35.5]} 19...
g5 {[%clk 0:02:08.5]} 20. Bg3 {[%clk 0:02:33.5]} 20... h5 {[%clk 0:02:09.1]} 21.
h3 {[%clk 0:02:31.4]} 21... f6 {[%clk 0:01:57.3]} 22. Nxd3 {[%clk 0:02:29.6]}
22... Rc8 {[%clk 0:01:57.9]} 23. Rxc8 {[%clk 0:02:26.1]} 23... Qxc8 {[%clk
0:01:58.8]} 24. Nb4 {[%clk 0:02:26.2]} 24... a5 {[%clk 0:01:56.8]} 25. Nxd5
{[%clk 0:02:25.1]} 25... Bd8 {[%clk 0:01:54.5]} 26. Rc1 {[%clk 0:02:20.8]} 26...
Qe6 {[%clk 0:01:54.4]} 27. Nc3 {[%clk 0:02:17.2]} 27... Qxb3 {[%clk 0:01:53.5]}
28. e4 {[%clk 0:02:14.8]} 28... Bd7 {[%clk 0:01:50.5]} 29. h4 {[%clk 0:02:14.5]}
29... Bxa4 {[%clk 0:01:45.1]} 30. Nd5 {[%clk 0:02:10.9]} 30... Bd7 {[%clk
0:01:29.6]} 31. hxg5 {[%clk 0:02:03.1]} 31... fxg5 {[%clk 0:01:30.5]} 32. Bc7
{[%clk 0:02:02.7]} 1-0

[Event "Late-Titled-Tuesday-Blitz-February-13-2024"]
[Site "Chess.com"]
[Date "2024.02.13"]
[Round "1"]
[White "AlleyOoper"]
[Black "NowInChess"]
[Result "1-0"]
[WhiteElo "2665"]
[BlackElo "2318"]
[TimeControl "180+1"]
[EndTime "14:04:18 PST"]
[Termination "AlleyOoper won by resignation"]

1. d4 {[%clk 0:02:56.1]} 1... Nf6 {[%clk 0:02:59]} 2. Nc3 {[%clk 0:02:43.6]}
2... e6 {[%clk 0:02:58.1]} 3. Bf4 {[%clk 0:02:43.3]} 3... d5 {[%clk 0:02:57.7]}
4. Nb5 {[%clk 0:02:43.3]} 4... Na6 {[%clk 0:02:56.7]} 5. a3 {[%clk 0:02:42.8]}
5... Be7 {[%clk 0:02:51.3]} 6. e3 {[%clk 0:02:42.8]} 6... O-O {[%clk 0:02:41.3]}
7. Nf3 {[%clk 0:02:42.9]} 7... Ne4 {[%clk 0:02:40.9]} 8. c4 {[%clk 0:02:39.6]}
8... c6 {[%clk 0:02:39.8]} 9. Nc3 {[%clk 0:02:39.7]} 9... Nxc3 {[%clk
0:02:38.8]} 10. bxc3 {[%clk 0:02:40.6]} 10... Qa5 {[%clk 0:02:24.1]} 11. Qc2
{[%clk 0:02:33.5]} 11... c5 {[%clk 0:02:16.2]} 12. Bd3 {[%clk 0:02:27]} 12...
Bd7 {[%clk 0:02:08.7]} 13. Bxh7+ {[%clk 0:02:26.4]} 13... Kh8 {[%clk 0:02:08.5]}
14. cxd5 {[%clk 0:02:07.1]} 14... exd5 {[%clk 0:02:03.4]} 15. O-O {[%clk
0:02:05.2]} 15... g6 {[%clk 0:01:51.7]} 16. Bxg6 {[%clk 0:02:02.8]} 16... fxg6
{[%clk 0:01:52.6]} 17. Qxg6 {[%clk 0:02:02.6]} 17... Qb6 {[%clk 0:01:53]} 18.
Be5+ {[%clk 0:01:58.5]} 18... Bf6 {[%clk 0:01:48.6]} 19. Ng5 {[%clk 0:01:56.7]}
19... Bf5 {[%clk 0:01:19.3]} 20. Qxf5 {[%clk 0:01:50.5]} 20... Qc7 {[%clk
0:01:03.6]} 21. Bxc7 {[%clk 0:01:47.3]} 21... Bxg5 {[%clk 0:01:04.1]} 22. Be5+
{[%clk 0:01:44]} 1-0

[Event "Late-Titled-Tuesday-Blitz-February-13-2024"]
[Site "Chess.com"]
[Date "2024.02.13"]
[Round "1"]
[White "RandomNoob04"]
[Black "szefru"]
[Result "1-0"]
[WhiteElo "2599"]
[BlackElo "2256"]
[TimeControl "180+1"]
[EndTime "14:04:30 PST"]
[Termination "RandomNoob04 won by resignation"]

1. e4 {[%clk 0:03:00.9]} 1... e5 {[%clk 0:02:59.3]} 2. d4 {[%clk 0:03:01.3]}
2... exd4 {[%clk 0:02:55.7]} 3. Qxd4 {[%clk 0:03:02.2]} 3... Nc6 {[%clk
0:02:52.6]} 4. Qe3 {[%clk 0:03:02.8]} 4... Nf6 {[%clk 0:02:49.5]} 5. e5 {[%clk
0:03:03.4]} 5... Nd5 {[%clk 0:02:49.3]} 6. Qe4 {[%clk 0:03:04.3]} 6... Nb6
{[%clk 0:02:46.7]} 7. Nf3 {[%clk 0:03:04.9]} 7... Be7 {[%clk 0:02:44.9]} 8. Nc3
{[%clk 0:03:05.5]} 8... O-O {[%clk 0:02:41.9]} 9. Bd3 {[%clk 0:03:05.5]} 9... g6
{[%clk 0:02:36.1]} 10. Bh6 {[%clk 0:03:06.1]} 10... Re8 {[%clk 0:02:34.3]} 11.
O-O-O {[%clk 0:03:06.6]} 11... d5 {[%clk 0:02:31.4]} 12. Qf4 {[%clk 0:03:05.3]}
12... Nb4 {[%clk 0:02:23.7]} 13. Ng5 {[%clk 0:03:04.1]} 13... Nxd3+ {[%clk
0:02:19.4]} 14. Rxd3 {[%clk 0:03:05]} 14... Bf5 {[%clk 0:02:14.4]} 15. g4 {[%clk
0:03:05.4]} 15... Be6 {[%clk 0:02:08.2]} 16. h4 {[%clk 0:03:05.2]} 16... Bf8
{[%clk 0:01:44.8]} 17. Bxf8 {[%clk 0:02:56.8]} 17... Rxf8 {[%clk 0:01:44.8]} 18.
h5 {[%clk 0:02:31.4]} 18... Qd7 {[%clk 0:01:02.9]} 19. Nxh7 {[%clk 0:02:21.1]}
19... g5 {[%clk 0:00:20.2]} 20. Nf6+ {[%clk 0:02:16.7]} 20... Kh8 {[%clk
0:00:19.9]} 21. Qxg5 {[%clk 0:02:15.9]} 1-0

[Event "Late-Titled-Tuesday-Blitz-February-13-2024"]
[Site "Chess.com"]
[Date "2024.02.13"]
[Round "1"]
[White "KnobbedHornbill"]
[Black "SpeedofLight0"]
[Result "0-1"]
[WhiteElo "2514"]
[BlackElo "3049"]
[TimeControl "180+1"]
[EndTime "14:04:34 PST"]
[Termination "SpeedofLight0 won by resignation"]

1. d4 {[%clk 0:03:00.9]} 1... Nf6 {[%clk 0:02:57.5]} 2. c4 {[%clk 0:03:01.6]}
2... d6 {[%clk 0:02:56.3]} 3. g3 {[%clk 0:03:02.1]} 3... Bd7 {[%clk 0:02:54.8]}
4. Nf3 {[%clk 0:03:02.2]} 4... g6 {[%clk 0:02:54.5]} 5. Bg2 {[%clk 0:03:02.4]}
5... Qc8 {[%clk 0:02:54.9]} 6. h3 {[%clk 0:02:57.9]} 6... Bg7 {[%clk 0:02:54.4]}
7. Nc3 {[%clk 0:02:58.5]} 7... Nc6 {[%clk 0:02:54.2]} 8. d5 {[%clk 0:02:58.2]}
8... Nb8 {[%clk 0:02:53.6]} 9. e4 {[%clk 0:02:57.2]} 9... O-O {[%clk 0:02:52.9]}
10. Bf4 {[%clk 0:02:57.2]} 10... a5 {[%clk 0:02:51]} 11. Qd2 {[%clk 0:02:54]}
11... Na6 {[%clk 0:02:49.9]} 12. O-O-O {[%clk 0:02:49.9]} 12... Nc5 {[%clk
0:02:47.6]} 13. e5 {[%clk 0:02:46.9]} 13... Nh5 {[%clk 0:02:34.6]} 14. Be3
{[%clk 0:02:30.1]} 14... f5 {[%clk 0:02:07.3]} 15. e6 {[%clk 0:02:24.9]} 15...
Ba4 {[%clk 0:01:48.4]} 16. Bxc5 {[%clk 0:02:13.3]} 16... Bxd1 {[%clk 0:01:47.8]}
17. Bd4 {[%clk 0:02:04.7]} 17... Bxf3 {[%clk 0:01:45.3]} 18. Bxf3 {[%clk
0:02:05.6]} 18... Nf6 {[%clk 0:01:41]} 19. h4 {[%clk 0:02:04.8]} 19... c6 {[%clk
0:01:38.2]} 20. h5 {[%clk 0:02:04.1]} 20... cxd5 {[%clk 0:01:25.3]} 21. cxd5
{[%clk 0:02:03.8]} 21... Qc4 {[%clk 0:01:19.5]} 22. hxg6 {[%clk 0:02:02]} 22...
hxg6 {[%clk 0:01:18.2]} 23. Kb1 {[%clk 0:01:56.1]} 23... Ne4 {[%clk 0:01:14.5]}
24. Nxe4 {[%clk 0:01:46.4]} 24... Qxd4 {[%clk 0:01:14.3]} 25. Qxd4 {[%clk
0:01:42.9]} 25... Bxd4 {[%clk 0:01:15.2]} 26. Ng5 {[%clk 0:01:43.3]} 26... Bxf2
{[%clk 0:01:13]} 27. Rh7 {[%clk 0:01:42.7]} 27... Be3 {[%clk 0:01:11.8]} 28.
Rxe7 {[%clk 0:01:37.4]} 28... Bxg5 {[%clk 0:01:11.8]} 29. Rxb7 {[%clk
0:01:38.3]} 29... Rfb8 {[%clk 0:01:06]} 0-1